bitfinex-derivatives/quotes_ETHF0:USTF0_20251028
["timestamp","ask_amount","ask_price","bid_price","bid_amount"]
[1761659494746,0.00261232,4162.5,4162.4,1.4533]
[1761659494926,1.02421232,4162.5,4162.4,0.4081]
[1761659495133,0.6005,4162.4,4161.9,3.2078]
[1761659495634,0.4211,4162.0,4161.9,3.2078]
[1761659495835,0.6005,4161.9,4161.2,3.2078]
[1761659496037,0.6005,4161.9,4161.2,3.8389]
[1761659496240,0.6005,4161.9,4161.2,3.2078]
[1761659496935,0.6005,4161.2,4160.7,3.2078]
[1761659497128,0.6005,4161.9,4161.3,0.8549]
[1761659497334,0.6005,4161.9,4161.3,1.486]
[1761659497541,0.6005,4161.9,4161.5,0.6311]
[1761659497840,0.6005,4161.9,4161.0,0.6311]
[1761659498026,0.6005,4161.9,4160.7,3.2078]
[1761659498231,0.6005,4161.9,4160.8,0.6311]
[1761659498634,0.2501,4161.5,4160.7,3.2078]
[1761659498942,0.2501,4161.5,4160.1,0.1195]
[1761659498943,0.00261232,4162.5,4162.4,0.8549]
[1761659499237,0.6005,4163.1,4162.5,0.6311]
[1761659499637,0.6005,4163.1,4163.0,0.4408]
[1761659499839,0.6005,4163.5,4163.0,0.8549]
[1761659500133,0.60236754,4163.5,4163.0,0.85694084]
[1761659500333,0.60236754,4163.5,4163.0,1.48804084]
[1761659500537,0.60236754,4163.5,4163.0,0.85694084]
[1761659500738,1.0216,4163.1,4163.0,0.00204084]
[1761659501042,0.00186754,4163.5,4163.4,0.4408]
[1761659501339,0.60236754,4163.5,4163.4,0.4408]
[1761659501643,0.6005,4163.4,4163.0,0.00204084]
[1761659501939,0.6005,4163.4,4163.0,0.63314084]
[1761659502140,0.6005,4163.4,4163.0,0.00204084]
[1761659502341,1.0216,4163.1,4163.0,0.00204084]
[1761659503739,1.5161,4163.1,4163.0,0.00204084]
[1761659504133,0.6005,4163.0,4161.8,3.2078]
[1761659504335,0.6005,4162.8,4161.8,3.2078]
[1761659504639,0.6005,4162.3,4161.4,0.6311]
[1761659504840,0.6005,4162.3,4161.3,3.2078]
[1761659504841,0.6005,4162.6,4162.2,0.4408]
[1761659505037,0.6005,4162.2,4161.3,3.2078]
[1761659505340,0.6005,4162.2,4161.3,3.84071024]
[1761659505636,0.6005,4162.2,4161.4,0.6311]
[1761659506234,0.6005,4162.2,4162.1,0.4408]
[1761659507936,0.6005,4162.7,4162.3,1.0719]
[1761659508134,0.6005,4162.7,4162.3,0.072]
[1761659508331,0.6005,4162.7,4161.9,0.6311]
[1761659508733,4.0514,4162.8,4161.8,3.2078]
[1761659508938,0.6005,4162.3,4161.8,3.8389]
[1761659509640,0.6005,4162.3,4161.9,0.6311]
[1761659510139,0.6005,4162.3,4161.8,3.2078]
[1761659510340,0.6005,4162.1,4161.8,3.2078]
[1761659511639,0.6005,4162.1,4162.0,0.4408]
[1761659512235,1.0216,4162.1,4162.0,0.4408]
[1761659513737,0.6005,4162.0,4161.8,3.2078]
[1761659514633,0.6005,4162.0,4161.9,0.4408]
[1761659514833,0.6005,4162.6,4162.2,0.6311]
[1761659515543,1.0216,4162.3,4162.2,0.4408]
[1761659516044,0.6005,4162.2,4161.9,0.6311]
[1761659516242,0.6005,4162.2,4162.1,0.4408]
[1761659516439,0.6005,4162.7,4162.1,1.486]
[1761659517145,1.0216,4162.2,4162.1,0.8549]
[1761659517347,1.0216,4162.2,4162.1,0.4408]
[1761659517842,1.0216,4161.9,4161.8,3.6486]
[1761659518541,0.6005,4161.8,4161.3,0.00181024]
[1761659518737,0.6005,4161.8,4161.3,0.63291024]
[1761659519135,1.4441,4161.4,4161.3,0.00181024]
[1761659519338,1.0216,4161.4,4161.3,0.44261024]
[1761659519942,0.6005,4161.6,4161.5,0.4408]
[1761659520144,1.0216,4161.4,4161.3,0.00181024]
[1761659520440,1.4441,4161.4,4161.3,0.00181024]
[1761659520641,1.5161,4161.4,4161.3,0.00181024]
[1761659521145,9.5161,4161.4,4161.3,0.00181024]
[1761659521348,10.37579493,4161.4,4161.3,0.00181024]
[1761659521548,2.37579493,4161.4,4161.3,0.00181024]
[1761659521844,1.7157622,4162.1,4161.7,0.4141]
[1761659521845,0.6005,4161.8,4161.7,0.4141]
[1761659522045,0.6005,4162.1,4161.7,1.486]
[1761659522244,0.6005,4162.1,4162.0,0.4408]
[1761659522445,0.6005,4162.1,4162.0,0.8549]
[1761659522640,1.0216,4162.1,4162.0,0.4408]
[1761659522841,3.4579,4162.2,4162.1,0.4408]
[1761659522842,3.2078,4162.2,4162.1,0.4408]
[1761659523148,3.2078,4162.2,4161.3,0.00181024]
[1761659523149,0.4211,4161.4,4161.3,0.00181024]
[1761659523348,1.0216,4161.4,4161.3,0.44261024]
[1761659523653,0.6005,4161.4,4161.3,0.44261024]
[1761659524145,0.6005,4161.4,4161.3,0.00181024]
[1761659524146,1.4441,4161.4,4161.3,0.00181024]
[1761659524844,42.2441,4161.4,4161.3,0.00181024]
[1761659525647,1.29360288,4162.1,4161.3,0.00181024]
[1761659525648,0.671,4161.7,4161.3,0.83101024]
[1761659525847,0.671,4161.7,4161.3,1.45161024]
[1761659526044,0.671,4161.5,4161.3,0.83101024]
[1761659526248,0.671,4161.4,4161.3,0.39711024]
[1761659527243,1.0407,4161.4,4161.3,0.39711024]
[1761659527751,1.477,4161.4,4161.3,0.00181024]
[1761659528648,1.549,4161.4,4161.3,0.00181024]
[1761659529157,1.477,4161.4,4161.3,0.00181024]
[1761659529658,42.277,4161.4,4161.3,0.00181024]
[1761659529849,1.477,4161.4,4161.3,0.39221024]
[1761659530050,0.671,4161.4,4161.3,0.39221024]
[1761659530250,1.448,4161.4,4161.3,0.00181024]
[1761659531954,1.52,4161.4,4161.3,0.00181024]
[1761659532755,42.248,4161.4,4161.3,0.39221024]
[1761659533760,42.248,4161.4,4161.3,0.00181024]
[1761659534949,42.248,4161.4,4161.3,0.39221024]
[1761659535156,3.2078,4161.6,4161.5,0.7633]
[1761659535364,0.9261,4161.4,4161.3,0.00181024]
[1761659535564,0.5474,4161.4,4161.3,0.76511024]
[1761659535861,0.5474,4162.5,4162.1,0.073932]
[1761659536454,0.239,4162.2,4162.0,3.2078]
[1761659536650,0.5474,4162.0,4161.5,3.2078]
[1761659536856,0.5474,4162.0,4161.5,3.64036]
[1761659537056,0.5474,4162.0,4161.5,3.2078]
[1761659537452,0.5474,4162.0,4161.5,3.2798]
[1761659537659,0.5474,4162.0,4161.6,0.072]
[1761659538055,0.5474,4162.0,4161.5,3.2078]
[1761659539160,0.5474,4162.0,4161.6,0.072]
[1761659539563,0.5474,4162.0,4161.7,0.50454]
[1761659539754,0.5474,4162.0,4161.7,0.43254]
[1761659539951,0.5474,4162.1,4161.8,0.072]
[1761659540153,0.5474,4162.1,4161.6,0.43255]
[1761659540364,0.5474,4162.1,4161.5,3.64036]
[1761659541271,0.5474,4162.1,4161.6,0.43255]
[1761659541568,0.5474,4162.1,4161.5,3.2078]
[1761659541766,0.5474,4162.1,4161.6,0.43256]
[1761659542361,0.5474,4162.1,4161.6,0.43255935]
[1761659542664,0.239,4162.2,4161.5,3.2078]
[1761659542665,0.9261,4161.6,4161.5,3.2078]
[1761659542865,0.5474,4161.6,4161.5,3.2078]
[1761659543269,0.97996,4161.6,4161.5,3.2078]
[1761659543763,1.35866,4161.6,4161.5,3.2078]
[1761659544466,1.75696,4161.6,4161.5,3.2078]
[1761659544962,0.3787,4161.4,4161.3,0.00181024]
[1761659545164,1.35868,4161.4,4161.3,0.00181024]
[1761659546258,1.75698,4161.4,4161.3,0.00181024]
[1761659547866,42.55698,4161.4,4161.3,0.00181024]
[1761659548667,1.75698,4161.4,4161.3,0.00181024]
[1761659548968,0.43258,4161.4,4161.3,0.07381024]
[1761659549264,1.35868,4161.4,4161.3,0.07381024]
[1761659549469,0.97998,4161.4,4161.3,0.07381024]
[1761659549769,0.97998,4161.4,4161.3,0.00181024]
[1761659550364,0.5474,4161.8,4161.3,0.00181024]
[1761659550565,0.5474,4161.8,4161.7,3.2078]
[1761659551068,1.3244,4161.8,4161.7,3.2078]
[1761659552468,0.5474,4161.8,4161.7,3.2078]
[1761659552669,0.9261,4161.8,4161.7,3.2078]
[1761659552975,0.5474,4161.8,4161.7,3.2078]
[1761659553472,0.5474,4161.8,4161.7,3.71235]
[1761659553768,0.5474,4161.8,4161.7,3.2798]
[1761659553973,0.5474,4161.8,4161.7,3.71235]
[1761659554273,0.5474,4162.1,4161.8,0.43254]
[1761659555070,0.351,4162.7,4162.6,0.2562]
[1761659555274,3.4579,4163.2,4162.7,0.5124]
[1761659555473,0.9621,4162.8,4162.6,3.2078]
[1761659555673,0.2211,4162.8,4162.7,0.5124]
[1761659557070,0.769,4162.8,4162.7,0.5124]
[1761659557674,1.12,4162.8,4162.7,0.2562]
[1761659558268,1.12,4162.8,4162.7,0.5124]
[1761659559078,1.2889,4162.7,4162.6,3.2078]
[1761659559279,1.2889,4162.7,4162.6,3.464]
[1761659559968,0.5479,4162.6,4161.9,3.2078]
[1761659560169,1.2889,4162.0,4161.9,3.2078]
[1761659560575,1.2889,4161.5,4161.4,3.2078]
[1761659560776,1.2889,4161.5,4161.4,3.464]
[1761659561165,0.8989,4161.5,4161.4,3.464]
[1761659561378,0.5479,4161.9,4161.8,0.2562]
[1761659561573,0.2211,4162.2,4162.1,0.2562]
[1761659561768,0.5721,4162.2,4162.1,0.2562]
[1761659562171,1.12,4162.2,4162.1,0.2562]
[1761659562878,1.51,4162.2,4162.1,0.2562]
[1761659563078,0.8989,4162.0,4161.9,3.2078]
[1761659563268,0.5479,4162.0,4161.9,3.7202]
[1761659563779,0.5479,4161.9,4161.4,3.64038]
[1761659563973,0.5479,4161.9,4161.8,0.5124]
[1761659564172,0.8989,4161.9,4161.8,0.5124]
[1761659564477,0.8989,4161.9,4161.4,3.2078]
[1761659564478,0.5479,4161.8,4161.4,3.2078]
[1761659564874,1.2889,4161.5,4161.4,3.464]
[1761659565779,1.2889,4161.5,4161.4,3.2078]
[1761659567582,0.5479,4161.5,4161.4,3.7202]
[1761659567978,0.5479,4161.5,4161.4,3.7922]
[1761659568172,0.8989,4162.0,4161.9,0.2562]
[1761659568576,1.2889,4162.0,4161.9,0.2562]
[1761659568785,0.741,4162.0,4161.4,3.2078]
[1761659569084,0.5479,4161.9,4161.4,3.2078]
[1761659571186,0.351,4161.5,4161.4,3.2078]
[1761659571394,1.2889,4161.5,4161.4,3.2078]
[1761659572391,1.2889,4161.5,4159.9,1.71642654]
[1761659572392,1.2889,4160.9,4160.8,3.2078]
[1761659572592,1.2889,4160.3,4160.2,3.2078]
[1761659573194,1.2889,4160.3,4160.2,3.4658]
[1761659573494,0.90184084,4160.3,4160.2,3.7261631]
[1761659573996,1.29184084,4160.3,4160.2,3.4681631]
[1761659574382,1.29184084,4160.3,4160.2,3.2101631]
[1761659574692,1.36384084,4160.3,4160.2,0.0023631]
[1761659575090,0.5479,4159.1,4158.6,3.2078]
[1761659575288,0.5479,4159.0,4158.6,3.2078]
[1761659575492,0.769,4159.2,4159.1,0.5208]
[1761659575697,0.5479,4159.2,4159.1,3.7286]
[1761659575891,0.769,4159.2,4159.1,3.7286]
[1761659576099,0.769,4159.2,4159.1,3.73130451]
[1761659576299,1.12,4159.2,4159.1,3.73130451]
[1761659576492,1.12,4159.2,4159.1,3.47090451]
[1761659576696,1.51,4159.2,4159.1,3.21050451]
[1761659578501,1.51,4159.2,4159.1,0.00270451]
[1761659578700,0.8989,4158.7,4158.6,3.2078]
[1761659579096,0.8989,4158.7,4158.6,3.4682]
[1761659579601,0.8989,4158.7,4158.6,3.47034814]
[1761659579996,0.5479,4159.1,4158.7,0.43286]
[1761659580199,0.5479,4159.1,4159.0,0.2604]
[1761659580399,0.5479,4159.1,4159.0,0.5208]
[1761659580895,1.2889,4158.7,4158.6,3.20994814]
[1761659581101,1.2889,4158.7,4158.6,3.47034814]
[1761659581905,0.5479,4158.7,4158.6,3.73074814]
[1761659583196,0.769,4159.2,4159.1,0.5208]
[1761659583398,10.0,4160.0,4159.9,0.5208]
[1761659583702,10.0,4160.0,4159.9,3.989]
[1761659584503,10.0,4160.0,4159.9,4.061]
[1761659585103,10.5372,4160.0,4159.9,3.7286]
[1761659585409,10.8713,4160.0,4159.9,3.4682]
[1761659585711,11.2476,4160.0,4159.9,3.2078]
[1761659587415,11.2476,4160.0,4159.9,3.3828]
[1761659587999,11.3196,4160.0,4159.9,3.2078]
[1761659588301,11.2476,4160.0,4159.9,3.2078]
[1761659588505,10.8713,4160.0,4159.9,3.3724]
[1761659589005,11.2015,4160.0,4159.9,3.2078]
[1761659590404,11.2735,4160.0,4159.9,3.2078]
[1761659590708,11.2015,4160.0,4159.9,3.2078]
[1761659594211,11.1891,4160.0,4159.9,3.3724]
[1761659594410,11.1891,4160.0,4159.9,3.80514]
[1761659594717,11.1891,4160.0,4159.9,3.2078]
[1761659596308,10.5372,4160.0,4159.9,4.04174]
[1761659596509,10.0,4160.0,4159.9,4.20634]
[1761659596915,10.0,4160.0,4159.9,4.13434]
[1761659597818,10.0,4160.0,4159.9,4.20634]
[1761659598113,10.0,4160.0,4159.9,4.13434]
[1761659598322,10.4872,4160.0,4159.9,3.96974]
[1761659598913,11.1391,4160.0,4159.9,3.2078]
[1761659599615,7.5391,4160.0,4159.9,3.80514]
[1761659599815,7.5391,4160.0,4159.9,3.64054]
[1761659600115,7.5391,4160.0,4159.9,3.2078]
[1761659600315,7.5391,4160.0,4159.9,3.64054]
[1761659600613,7.2089,4160.0,4159.9,3.96974]
[1761659602222,7.2089,4160.0,4159.9,4.04174]
[1761659602619,6.8872,4160.0,4159.9,4.04174]
[1761659603119,6.4,4160.0,4159.9,4.13434]
[1761659603321,6.4,4160.0,4159.9,4.20634]
[1761659603925,6.8872,4160.0,4159.9,3.96974]
[1761659604425,7.2089,4160.0,4159.9,3.96974]
[1761659604823,7.5391,4160.0,4159.9,3.96974]
[1761659605029,7.2089,4160.0,4159.9,3.96974]
[1761659606430,6.8872,4160.0,4159.9,4.04174]
[1761659606725,5.30101231,4160.0,4159.9,4.13434]
[1761659607020,1.03,4161.0,4160.9,0.76183]
[1761659607219,0.7083,4161.0,4160.9,3.96963]
[1761659607815,1.50597859,4161.0,4160.9,3.2078]
[1761659608421,1.36197859,4161.0,4160.9,3.3724]
[1761659608629,1.50597859,4161.0,4160.9,3.3724]
[1761659609122,1.50597859,4161.0,4160.9,3.2078]
[1761659610230,1.57797859,4161.0,4160.9,3.2078]
[1761659610428,1.50597859,4161.0,4160.9,3.2078]
[1761659610631,1.57797859,4161.0,4160.9,3.2078]
[1761659610834,1.1391,4160.5,4160.4,3.2078]
[1761659611130,1.1391,4159.9,4159.8,3.2078]
[1761659613624,1.1391,4159.3,4159.2,3.2078]
[1761659614531,1.1391,4159.3,4159.2,3.6829]
[1761659614732,1.1391,4159.3,4159.2,3.2078]
[1761659616531,1.2111,4159.3,4159.2,3.2078]
[1761659616740,1.1391,4159.3,4159.2,3.2078]
[1761659617230,3.2078,4160.2,4159.7,0.8071]
[1761659617430,3.2078,4160.2,4159.2,3.2078]
[1761659617431,0.7967,4159.3,4159.2,3.2078]
[1761659617830,1.2655,4159.3,4159.2,3.2078]
[1761659618134,1.2655,4159.3,4159.2,3.6829]
[1761659618833,1.2655,4159.3,4159.2,4.0149]
[1761659619134,0.9317,4159.7,4159.6,0.4751]
[1761659619334,1.2655,4159.7,4159.6,0.4751]
[1761659620630,1.2655,4159.7,4159.6,0.8071]
[1761659620828,1.2655,4159.7,4159.3,0.43279]
[1761659620829,0.9317,4159.3,4159.2,3.6829]
[1761659621232,0.9317,4159.7,4159.6,0.4751]
[1761659622333,0.9317,4159.7,4159.6,0.8071]
[1761659625230,1.2655,4160.0,4159.5,0.4992]
[1761659625429,0.7967,4160.0,4159.9,3.2078]
[1761659625832,1.2655,4160.0,4159.9,3.2078]
[1761659626431,1.3375,4160.0,4159.9,3.2078]
[1761659626637,1.2655,4160.0,4159.9,3.2078]
[1761659626835,1.535,4160.0,4159.9,3.6829]
[1761659627034,1.535,4160.0,4159.9,4.0149]
[1761659627232,1.535,4160.0,4159.9,3.2078]
[1761659628142,1.607,4160.0,4159.9,3.2078]
[1761659629838,1.535,4159.5,4159.4,3.2078]
[1761659630438,42.335,4159.5,4159.4,3.6829]
[1761659631839,1.535,4159.5,4159.4,3.6829]
[1761659632338,1.535,4159.5,4159.4,4.0149]
[1761659632539,1.535,4159.5,4159.4,3.2078]
[1761659632739,1.607,4159.5,4159.4,3.2078]
[1761659632944,1.607,4159.5,4158.8,3.2078]
[1761659633136,1.2655,4158.9,4158.8,3.2078]
[1761659633648,1.2655,4158.9,4157.7,1.27515023]
[1761659633649,0.8026,4157.9,4157.8,3.2078]
[1761659633941,1.2655,4157.9,4157.8,3.6829]
[1761659634541,1.26776795,4157.9,4157.8,3.68462918]
[1761659635239,0.4688,4158.8,4158.7,0.4751]
[1761659635442,0.9317,4158.8,4158.7,0.8071]
[1761659635633,0.4688,4158.7,4158.3,3.2078]
[1761659635834,0.2695,4158.6,4158.3,3.2078]
[1761659636035,40.8,4159.4,4158.9,0.4751]
[1761659636036,0.7324,4159.0,4158.9,0.4751]
[1761659636243,1.06851512,4159.0,4158.4,0.4992]
[1761659636539,0.4688,4158.9,4158.4,0.93208]
[1761659637044,0.9317,4158.9,4158.8,0.8071]
[1761659637444,0.27181512,4159.0,4158.8,4.0149]
[1761659637744,1.26781512,4159.0,4158.9,0.8071]
[1761659638648,1.2655,4158.9,4158.8,3.2078]
[1761659638940,1.2655,4158.9,4158.8,3.6829]
[1761659639146,1.2655,4158.9,4158.8,4.0149]
[1761659639337,0.9317,4158.9,4158.8,4.0149]
[1761659639543,0.4688,4158.9,4158.8,4.5141]
[1761659639744,1.3375,4158.9,4158.8,3.2078]
[1761659639944,0.9317,4158.4,4158.3,4.0149]
[1761659640439,1.2655,4158.4,4158.3,3.6829]
[1761659640634,1.3375,4158.4,4158.3,3.2078]
[1761659640840,1.2655,4158.4,4158.3,3.2078]
[1761659642137,1.2655,4158.4,4158.3,4.0149]
[1761659642339,1.2655,4158.4,4158.3,3.2078]
[1761659642945,0.4688,4158.8,4158.3,3.2078]
[1761659643141,0.9317,4158.8,4158.7,0.8071]
[1761659643340,0.47111512,4159.0,4158.9,1.3063]
[1761659643537,1.26781512,4159.0,4158.9,3.2078]
[1761659643739,1.33981512,4159.0,4158.9,3.2078]
[1761659643938,1.33981512,4159.0,4158.3,3.2078]
[1761659644141,1.2655,4158.4,4158.3,3.2078]
[1761659644748,1.2655,4158.4,4158.3,3.6829]
[1761659645444,1.2655,4158.4,4158.3,3.2078]
[1761659645643,1.3375,4158.4,4158.3,3.2078]
[1761659646046,1.2655,4158.4,4158.3,3.2078]
[1761659646852,1.3375,4158.4,4158.3,3.2078]
[1761659647049,1.3375,4158.4,4157.8,3.20952918]
[1761659647050,1.5372,4157.9,4157.8,3.20952918]
[1761659647342,1.5372,4157.9,4157.8,3.60332918]
[1761659648148,1.5372,4157.9,4157.8,3.20952918]
[1761659648950,1.5372,4157.9,4157.8,3.59712918]
[1761659649142,1.5372,4157.9,4157.8,3.99352918]
[1761659649347,1.4669,4157.9,4157.8,3.99352918]
[1761659649548,1.5389,4157.9,4157.8,3.59712918]
[1761659649746,1.4669,4157.9,4157.8,3.20952918]
[1761659650243,0.3875,4158.0,4157.9,0.784]
[1761659650446,1.6255,4158.0,4157.9,0.784]
[1761659650648,1.6255,4158.0,4157.9,0.3876]
[1761659650842,1.3877,4157.9,4157.8,3.20952918]
[1761659651050,1.3877,4157.9,4157.8,0.00172918]
[1761659651249,9.4597,4157.9,4157.8,0.00172918]
[1761659651749,50.2597,4157.9,4157.8,0.00172918]
[1761659652253,0.3875,4157.2,4157.1,0.0228074]
[1761659652551,1.3877,4157.2,4157.1,0.0228074]
[1761659653054,42.1877,4157.2,4157.1,0.0228074]
[1761659653351,42.1877,4157.2,4157.1,0.02538936]
[1761659653549,42.1877,4157.2,4157.1,4.01718936]
[1761659653946,0.6023,4157.2,4157.1,4.43478936]
[1761659654346,0.9898,4157.2,4157.1,4.01718936]
[1761659654546,1.3877,4157.2,4157.1,3.62078936]
[1761659654748,1.3877,4157.2,4157.1,3.23318936]
[1761659654945,1.4597,4157.2,4157.1,3.23318936]
[1761659655148,1.4597,4157.2,4157.1,0.02538936]
[1761659655350,1.6542039,4157.2,4157.1,0.02538936]
[1761659655745,42.2597,4157.2,4157.1,0.02538936]
[1761659656650,42.1877,4157.2,4157.1,0.02538936]
[1761659656948,1.6255,4156.2,4156.1,3.2078]
[1761659657546,0.6023,4156.1,4155.6,3.2078]
[1761659657747,1.3877,4155.7,4155.6,3.2078]
[1761659657941,1.38981924,4155.7,4155.6,3.21069197]
[1761659658550,0.00211924,4155.7,4155.6,4.06669197]
[1761659658746,0.99191924,4155.7,4155.6,3.99469197]
[1761659658952,1.38981924,4155.7,4155.6,3.99469197]
[1761659659151,0.00211924,4155.7,4155.6,4.43769197]
[1761659659457,0.99191924,4155.7,4155.6,3.99469197]
[1761659659755,1.38981924,4155.7,4155.6,3.21069197]
[1761659660153,1.46181924,4155.7,4155.6,3.21069197]
[1761659660359,1.38981924,4155.7,4155.6,3.21069197]
[1761659660856,1.46181924,4155.7,4155.6,3.21069197]
[1761659661050,1.46181924,4155.7,4155.6,0.00289197]
[1761659661246,9.46181924,4155.7,4155.6,0.00289197]
[1761659661553,1.3877,4155.2,4155.1,3.2078]
[1761659662056,1.4597,4155.2,4155.1,3.2078]
[1761659662254,0.2378,4155.0,4154.9,0.3876]
[1761659662557,3.2078,4155.5,4154.9,1.22906505]
[1761659662558,40.8,4155.4,4154.9,1.22906505]
[1761659662749,0.9898,4155.3,4155.2,3.9918]
[1761659662950,1.2276,4155.0,4154.9,0.38966505]
[1761659663151,1.6255,4155.0,4154.9,0.00206505]
[1761659664960,1.6255,4155.0,4153.5,1.0835]
[1761659664961,1.3877,4154.3,4154.2,3.2078]
[1761659665153,1.3877,4154.3,4153.5,0.443]
[1761659665154,0.6023,4154.2,4153.6,3.2078]
[1761659665652,1.3877,4154.2,4154.1,3.5954]
[1761659665955,1.3877,4154.2,4154.1,3.59790682]
[1761659666458,1.3877,4154.2,4154.1,0.39010682]
[1761659666660,0.9898,4154.2,4154.1,0.39010682]
[1761659667055,1.3877,4154.2,4154.1,0.39010682]
[1761659667249,1.3877,4154.2,4154.1,0.00250682]
[1761659667450,0.6023,4154.6,4154.3,0.784]
[1761659667751,0.6023,4154.6,4154.5,1.227]
[1761659668059,0.9898,4154.6,4154.5,0.784]
[1761659668560,3.8101,4154.8,4154.7,0.784]
[1761659668751,0.9898,4154.8,4154.7,0.784]
[1761659669459,3.2078,4155.3,4154.7,0.784]
[1761659669460,3.8101,4155.3,4154.7,1.227]
[1761659669762,0.6253,4155.6,4155.5,0.784]
[1761659670262,1.2276,4155.6,4155.5,0.784]
[1761659670951,0.00211924,4155.7,4155.6,1.227]
[1761659671462,0.00211924,4155.7,4155.6,1.299]
[1761659672859,0.8401,4156.8,4156.7,0.784]
[1761659673259,0.6023,4156.8,4156.7,0.784]
[1761659673460,0.6023,4156.7,4156.4,3.2078]
[1761659673661,0.9898,4156.5,4156.4,3.5954]
[1761659673861,0.6023,4157.1,4157.0,0.3876]
[1761659674061,1.38958238,4157.1,4157.0,0.3876]
[1761659674255,1.38958238,4157.1,4156.9,3.2078]
[1761659674256,1.3877,4157.0,4156.9,3.2078]
[1761659674562,1.4597,4157.0,4156.9,3.2078]
[1761659674764,1.3877,4157.0,4156.9,3.2078]
[1761659675155,1.3994,4156.4,4156.3,3.5462]
[1761659675357,0.2286,4156.8,4155.8,3.2078]
[1761659675358,1.3994,4155.9,4155.8,3.2078]
[1761659675662,1.3994,4155.3,4155.2,3.2078]
[1761659676163,1.0083,4154.5,4154.4,3.2078]
[1761659676355,1.3994,4154.2,4154.1,0.00250682]
[1761659676763,0.6226,4154.2,4154.1,0.67930682]
[1761659676962,1.3994,4154.2,4154.1,0.00250682]
[1761659678963,0.8512,4154.4,4154.3,0.6768]
[1761659679364,0.6226,4154.4,4154.3,0.6768]
[1761659679768,0.6226,4154.4,4154.3,0.3384]
[1761659679769,1.0083,4154.4,4154.3,0.3384]
[1761659680162,40.8,4154.9,4154.8,0.3384]
[1761659680369,0.3857,4154.9,4154.8,0.3384]
[1761659680559,3.4364,4155.0,4154.8,0.6768]
[1761659680765,0.2286,4155.0,4154.9,0.3384]
[1761659680967,41.0286,4155.0,4154.9,0.3384]
[1761659681168,0.7768,4154.9,4154.8,3.2078]
[1761659681465,1.3994,4154.9,4154.8,3.2078]
[1761659681662,1.3994,4154.9,4154.8,3.5462]
[1761659683360,0.6226,4154.9,4154.8,3.8846]
[1761659683567,0.6226,4155.4,4154.9,0.6768]
[1761659683763,0.6226,4155.4,4155.3,0.3384]
[1761659684069,0.43325,4154.9,4154.8,3.8846]
[1761659684365,1.05581,4155.3,4155.2,1.0152]
[1761659684569,0.43321,4155.3,4155.2,1.0152]
[1761659684771,0.43321,4155.3,4155.2,0.3384]
[1761659684772,1.44151,4155.3,4155.2,0.3384]
[1761659684968,0.43328,4154.6,4154.5,0.3384]
[1761659685165,0.43328,4154.7,4154.6,1.0152]
[1761659685470,1.05588,4154.7,4154.6,0.6768]
[1761659685967,0.81899,4154.5,4154.4,3.2078]
[1761659686167,1.44162,4154.2,4154.1,0.34090682]
[1761659687466,0.4334,4153.5,4153.4,3.2078]
[1761659687769,1.056,4153.5,4153.4,3.2078]
[1761659688268,1.05842697,4153.5,4153.4,3.20997096]
[1761659688672,0.43582697,4153.5,4153.4,3.28197096]
[1761659689069,0.43582697,4153.5,4153.4,3.20997096]
[1761659689266,1.44412697,4153.5,4153.4,3.20997096]
[1761659689473,1.44412697,4153.5,4153.4,0.00217096]
[1761659689768,1.05842697,4153.5,4153.4,3.20997096]
[1761659689967,1.05842697,4153.5,4153.4,0.00217096]
[1761659690472,1.44412697,4153.5,4153.4,0.00217096]
[1761659690673,1.83522697,4153.5,4153.4,0.00217096]
[1761659691265,0.43351,4152.4,4152.3,3.2078]
[1761659691868,0.43351,4152.4,4152.3,3.2798]
[1761659692073,0.4335,4152.5,4152.3,3.71332]
[1761659692276,0.4335,4152.5,4152.4,0.072]
[1761659692675,0.4335,4152.5,4152.3,3.64383094]
[1761659692876,0.43348,4152.7,4152.6,0.43349]
[1761659693074,0.43348,4152.7,4152.6,0.43348]
[1761659693279,0.43348,4152.7,4152.6,0.50548]
[1761659694079,0.8512,4153.2,4152.8,0.43347]
[1761659694281,0.8512,4153.2,4153.1,3.2078]
[1761659695279,1.628,4153.2,4152.5,3.2078]
[1761659695477,1.2369,4152.6,4152.5,3.2078]
[1761659695782,1.628,4152.6,4152.5,3.2078]
[1761659697483,1.628,4152.6,4152.3,0.00251094]
[1761659697484,0.6226,4152.5,4152.3,0.00251094]
[1761659697682,1.3994,4152.4,4152.3,0.00251094]
[1761659699481,1.4714,4152.4,4152.3,0.00251094]
[1761659699871,1.4714,4152.4,4151.0,0.43366]
[1761659699872,1.0857,4152.4,4151.3,3.2078]
[1761659700179,0.6226,4151.8,4150.4,1.08431]
[1761659700480,0.8512,4151.4,4151.3,3.2078]
[1761659700882,0.8512,4151.4,4151.3,3.21057014]
[1761659701480,0.6226,4151.7,4151.4,0.43362]
[1761659701681,0.6226,4151.7,4151.3,3.21057014]
[1761659701981,0.2286,4151.4,4151.3,3.21057014]
[1761659702176,1.628,4151.4,4151.3,3.21057014]
[1761659702684,0.8512,4151.4,4151.3,3.21057014]
[1761659703070,1.2369,4151.4,4151.3,3.28257014]
[1761659703272,1.2369,4151.4,4151.3,3.21057014]
[1761659703477,0.8512,4151.4,4151.3,3.64420014]
[1761659703678,0.8512,4151.4,4151.3,3.21057014]
[1761659703878,1.628,4151.4,4151.3,3.21057014]
[1761659705980,1.7,4151.4,4151.3,0.00277014]
[1761659706177,1.628,4151.4,4151.3,0.00277014]
[1761659706687,42.428,4151.4,4151.3,0.00277014]
[1761659706883,1.628,4151.4,4151.3,0.00277014]